bitfinex/quotes_SOLUSD_20241125
["timestamp","ask_amount","ask_price","bid_price","bid_amount"]
[1732530231718,12.1394614,253.09,253.01,20.0]
[1732530233604,23.776884,253.13,253.01,20.0]
[1732530233919,20.0,253.22,253.05,20.0]
[1732530233920,23.776884,253.15,253.05,20.0]
[1732530234096,159.476884,253.15,253.05,20.0]
[1732530234298,135.7,253.15,253.05,20.0]
[1732530235507,23.776884,253.14,253.05,20.0]
[1732530237297,135.7,253.15,253.06,17.8575]
[1732530237520,135.7,253.15,253.09,20.0]
[1732530237896,23.776884,253.19,253.09,20.0]
[1732530238604,12.1394614,253.18,253.09,20.0]
[1732530238802,23.776884,253.11,253.06,17.8575]
[1732530239104,23.776884,253.1,253.06,17.8575]
[1732530239305,35.9163454,253.1,253.06,17.8575]
[1732530239511,12.1394614,253.09,253.06,17.8575]
[1732530239720,23.776884,253.08,253.06,17.8575]
[1732530239904,23.776884,253.09,253.06,17.8575]
[1732530240304,35.9163454,253.09,253.06,17.8575]
[1732530240612,23.776884,253.09,253.06,17.8575]
[1732530240820,35.9163454,253.09,253.06,17.8575]
[1732530241208,23.776884,253.09,253.06,17.8575]
[1732530242320,23.776884,253.1,253.06,17.8575]
[1732530243217,135.7,253.16,253.06,17.8575]
[1732530243524,12.1394614,253.21,253.09,20.0]
[1732530243906,3.9491,253.22,253.09,20.0]
[1732530244115,12.1394614,253.17,253.06,17.8575]
[1732530244326,12.1394614,253.16,253.06,17.8575]
[1732530244519,23.776884,253.13,253.06,17.8575]
[1732530244829,23.776884,253.14,253.06,17.8575]
[1732530245400,35.9163454,253.14,253.06,17.8575]
[1732530246016,23.776884,253.12,253.06,17.8575]
[1732530246431,12.1394614,253.11,253.06,17.8575]
[1732530246619,23.776884,253.1,253.06,17.8575]
[1732530247026,35.6972516,253.11,253.06,17.8575]
[1732530249236,12.1394614,253.08,253.0,17.9018]
[1732530249409,23.776884,253.07,253.0,17.9018]
[1732530249832,23.776884,253.09,253.0,17.9018]
[1732530250033,23.776884,253.07,253.0,17.9018]
[1732530250341,35.9163454,253.09,253.0,17.9018]
[1732530250734,23.776884,253.09,253.0,17.9018]
[1732530251037,35.9163454,253.09,253.0,17.9018]
[1732530251414,12.1394614,253.08,253.0,17.9018]
[1732530251639,35.9163454,253.09,253.0,17.9018]
[1732530252736,12.1394614,253.08,253.0,17.9018]
[1732530253035,23.776884,253.07,253.0,17.9018]
[1732530253539,23.776884,253.1,253.0,17.9018]
[1732530253742,35.9163454,253.1,253.0,17.9018]
[1732530253912,12.1394614,253.09,253.0,17.9018]
[1732530254112,23.776884,253.08,253.0,17.9018]
[1732530254335,23.776884,253.09,253.0,17.9018]
[1732530256213,23.776884,253.1,253.0,17.9018]
[1732530256415,23.776884,253.1,253.03,20.0]
[1732530256831,147.8394614,253.17,253.03,20.0]
[1732530257136,12.1394614,253.18,253.03,20.0]
[1732530257335,12.1394614,253.16,253.03,20.0]
[1732530258337,35.9163454,253.15,253.03,20.0]
[1732530259016,23.776884,253.15,253.03,20.0]
[1732530259330,147.8394614,253.19,253.07,20.0]
[1732530260053,147.8394614,253.19,253.08,17.6576]
[1732530260227,135.7,253.19,253.08,17.6576]
[1732530260635,12.1394614,253.18,253.08,17.6576]
[1732530260832,12.1394614,253.09,253.02,17.6576]
[1732530261034,23.776884,253.07,253.02,17.6576]
[1732530261342,35.9163454,253.07,253.02,17.6576]
[1732530261518,23.776884,253.05,253.02,17.6576]
[1732530261715,35.9163454,253.07,253.02,17.6576]
[1732530262023,23.776884,253.05,253.02,17.6576]
[1732530262847,23.776884,253.07,253.02,17.6576]
[1732530263638,23.776884,253.08,253.02,17.6576]
[1732530264135,12.1394614,253.07,253.02,17.6576]
[1732530264444,23.776884,253.06,253.02,17.6576]
[1732530265721,12.1394614,253.12,253.02,17.6576]
[1732530265944,12.1394614,253.11,253.02,17.6576]
[1732530266534,12.1394614,253.11,253.02,24.574]
[1732530266737,147.8394614,253.14,253.05,20.0]
[1732530267047,135.7,253.14,253.05,20.0]
[1732530267234,135.7,253.23,253.05,20.0]
[1732530267545,12.1394614,253.21,253.1,19.876]
[1732530267757,135.7,253.24,253.1,19.876]
[1732530267758,12.1394614,253.2,253.1,19.876]
[1732530268051,12.1394614,253.18,253.1,19.876]
[1732530268343,12.1394614,253.15,253.1,19.876]
[1732530268547,12.1394614,253.14,253.1,19.876]
[1732530268847,12.1394614,253.18,253.1,19.876]
[1732530269429,12.1394614,253.17,253.1,19.876]
[1732530270050,23.776884,253.16,253.1,19.876]
[1732530270527,23.776884,253.17,253.1,19.876]
[1732530271228,12.1394614,253.17,253.1,19.876]
[1732530271428,23.776884,253.16,253.1,19.876]
[1732530271841,35.9163454,253.16,253.1,19.876]
[1732530272829,12.1394614,253.15,253.1,19.876]
[1732530273056,23.776884,253.14,253.1,19.876]
[1732530273262,35.9163454,253.14,253.1,19.876]
[1732530273547,12.1394614,253.13,253.1,17.9005]
[1732530273749,35.9163454,253.12,253.1,17.9005]
[1732530275032,23.776884,253.12,253.1,17.9005]
[1732530275339,23.776884,253.12,253.1,20.271]
[1732530275547,23.776884,253.14,253.1,20.271]
[1732530275932,35.9163454,253.14,253.1,20.271]
[1732530276442,12.1394614,253.13,253.1,20.271]
[1732530276640,23.776884,253.11,253.1,20.271]
[1732530277847,23.776884,253.11,253.1,2.3705]
[1732530278157,23.776884,253.11,253.07,2.3708]
[1732530278650,135.7,253.21,253.09,20.0]
[1732530278651,23.776884,253.14,253.09,20.0]
[1732530278848,23.776884,253.15,253.09,20.0]
[1732530280148,23.776884,253.15,253.1,2.3706]
[1732530280554,35.9163454,253.15,253.1,2.3706]
[1732530281237,23.776884,253.15,253.1,2.3706]
[1732530281557,12.1394614,253.13,253.07,7.9029]
[1732530282043,12.1394614,253.11,253.07,1.9757]
[1732530282638,23.776884,253.09,253.07,1.9757]
[1732530282871,35.9163454,253.09,253.06,1.9757]
[1732530283043,12.1394614,253.07,253.06,1.9757]
[1732530283244,12.1394614,253.08,253.06,1.9757]
[1732530283450,35.9163454,253.09,253.06,1.9757]
[1732530283854,23.776884,253.09,253.06,1.9757]
[1732530284047,12.1394614,253.14,253.08,20.0]
[1732530284247,23.776884,253.14,253.09,20.0]
[1732530285040,23.776884,253.13,253.09,20.0]
[1732530285230,12.1394614,253.13,253.09,20.0]
[1732530285648,12.1394614,253.13,253.1,1.9755]
[1732530286042,35.9163454,253.12,253.1,1.9755]
[1732530286251,12.1394614,253.12,253.1,1.9755]
[1732530286652,12.1394614,253.12,253.09,20.0]
[1732530286653,23.776884,253.11,253.09,1.9755]
[1732530286838,23.776884,253.09,253.08,20.0]
[1732530287246,35.9163454,253.09,253.08,20.0]
[1732530287540,35.9163454,253.09,253.05,18.2106]
[1732530287739,12.1394614,253.06,253.05,18.2106]
[1732530288159,23.776884,253.06,253.05,18.2106]
[1732530288464,23.776884,253.06,253.05,20.1864]
[1732530289145,139.6502,253.16,253.05,20.1864]
[1732530289146,23.776884,253.11,253.05,20.1864]
[1732530289349,35.9163454,253.11,253.05,20.1864]
[1732530290354,23.776884,253.11,253.05,20.1864]
[1732530291944,12.1394614,253.08,253.05,20.1864]
[1732530292148,12.1394614,253.09,253.05,20.1864]
[1732530292362,23.776884,253.08,253.07,20.0]
[1732530294054,23.776884,253.08,253.07,21.9757]
[1732530294254,23.776884,253.08,253.07,20.0]
[1732530294571,35.9163454,253.08,253.07,20.0]
[1732530295062,23.776884,253.08,253.07,20.0]
[1732530295650,23.776884,253.08,253.05,18.2106]
[1732530295651,35.9163454,253.08,253.05,18.2106]
[1732530295853,12.1394614,253.07,253.03,20.0]
[1732530296170,12.1394614,253.06,253.03,20.0]
[1732530296355,12.1394614,253.07,253.03,20.0]
[1732530297763,12.1394614,253.08,253.03,21.9759]
[1732530297947,23.776884,253.07,253.03,21.9759]
[1732530298347,23.776884,253.08,253.03,21.9759]
[1732530300270,35.9163454,253.08,253.03,21.9759]
[1732530300650,23.776884,253.08,253.03,21.9759]
[1732530300882,35.9163454,253.08,253.03,21.9759]
[1732530301370,12.1394614,253.05,253.01,1.5809]
[1732530301552,12.1394614,253.04,253.01,1.5809]
[1732530302169,12.1394614,253.06,253.01,1.5809]
[1732530302372,23.776884,253.1,253.01,1.5809]
[1732530302373,12.1394614,253.07,253.01,1.5809]
[1732530302670,12.1394614,253.08,253.02,20.0]
[1732530302856,23.776884,253.07,253.02,20.0]
[1732530303056,12.1394614,253.16,253.04,20.0]
[1732530303252,147.8394614,253.19,253.04,20.0]
[1732530303448,12.1394614,253.18,253.05,1.5807]
[1732530303649,12.1394614,253.22,253.08,20.0]
[1732530303872,147.8394614,253.23,253.09,18.1967]
[1732530304166,12.1394614,253.22,253.09,18.1967]
[1732530304471,12.1394614,253.21,253.09,18.1967]
[1732530304646,12.1394614,253.19,253.09,18.1967]
[1732530304849,12.1394614,253.16,253.09,18.1967]
[1732530305048,23.776884,253.15,253.09,18.1967]
[1732530306078,23.776884,253.15,253.09,19.7771]
[1732530306373,35.9163454,253.15,253.09,18.1967]
[1732530306871,23.776884,253.14,253.09,19.7771]
[1732530307077,12.1394614,253.11,253.08,20.0]
[1732530307374,12.1394614,253.13,253.06,1.5806]
[1732530307574,23.776884,253.12,253.06,1.5806]
[1732530308073,12.1394614,253.13,253.06,1.5806]
[1732530308273,12.1394614,253.09,253.03,18.243]
[1732530308573,23.776884,253.1,253.03,18.243]
[1732530308574,12.1394614,253.08,253.03,18.243]
[1732530308971,12.1394614,253.08,253.03,19.8238]
[1732530309273,12.1394614,253.07,253.03,19.8238]
[1732530309473,12.1394614,253.09,253.03,19.8238]
[1732530310055,23.776884,253.1,253.03,19.8238]
[1732530310555,23.776884,253.11,253.03,19.8238]
[1732530310971,23.776884,253.13,253.03,19.8238]
[1732530312356,12.1394614,253.13,253.03,19.8238]
[1732530312552,23.776884,253.12,253.03,19.8238]
[1732530312952,35.9163454,253.12,253.03,19.8238]
[1732530313669,23.776884,253.14,253.03,24.7639]
[1732530314783,23.776884,253.14,253.06,20.0]
[1732530315154,23.776884,253.14,253.07,1.9757]
[1732530315462,35.9163454,253.14,253.07,1.9757]
[1732530316748,12.1394614,253.13,253.07,1.9757]
[1732530317578,23.776884,253.13,253.07,1.9757]
[1732530317868,35.9163454,253.18,253.07,1.9757]
[1732530318077,12.1394614,253.19,253.07,1.9757]
[1732530318250,12.1394614,253.26,253.12,18.4586]
[1732530318450,12.1394614,253.26,253.15,20.0]
[1732530319273,147.8394614,253.27,253.15,20.0]
[1732530319455,147.8394614,253.27,253.16,1.975]
[1732530319652,12.1394614,253.26,253.16,1.975]
[1732530319867,12.1394614,253.24,253.16,1.975]
[1732530320400,12.1394614,253.23,253.16,1.975]
[1732530320576,35.9163454,253.22,253.15,20.0]
[1732530321070,12.1394614,253.2,253.13,1.9752]
[1732530321281,12.1394614,253.17,253.12,18.4586]
[1732530321460,12.1394614,253.16,253.12,18.4586]
[1732530321866,12.1394614,253.16,253.12,20.4339]
[1732530322050,12.1394614,253.17,253.12,20.4339]
[1732530322256,12.1394614,253.17,253.12,18.4586]
[1732530324480,12.1394614,253.16,253.12,18.4586]
[1732530325663,12.1394614,253.14,253.12,18.4586]
[1732530326386,12.1394614,253.13,253.06,17.6036]
[1732530326563,12.1394614,253.12,253.06,17.6036]
[1732530327060,12.1394614,253.13,253.06,17.6036]
[1732530327280,12.1394614,253.1,253.06,17.6036]
[1732530328987,12.1394614,253.11,253.06,17.6036]
[1732530329864,12.1394614,253.14,253.06,19.5794]
[1732530330066,12.1394614,253.17,253.06,19.5794]
[1732530330279,23.776884,253.19,253.06,19.5794]
[1732530330581,12.1394614,253.17,253.06,24.5189]
[1732530331072,12.1394614,253.17,253.06,19.5794]
[1732530332199,12.1394614,253.16,253.06,19.5794]
[1732530332399,12.1394614,253.15,253.06,19.5794]
[1732530332983,12.1394614,253.14,253.06,19.5794]
[1732530333177,12.1394614,253.15,253.06,19.5794]
[1732530333801,12.1394614,253.16,253.06,19.5794]
[1732530336396,12.1394614,253.15,253.06,19.5794]
[1732530337392,12.1394614,253.16,253.06,19.5794]
[1732530338000,12.1394614,253.17,253.06,19.5794]
[1732530338207,12.1394614,253.18,253.06,19.5794]
[1732530338503,12.1394614,253.17,253.06,19.5794]
[1732530340799,12.1394614,253.19,253.06,19.5794]
[1732530341005,39.8657454,253.2,253.06,19.5794]
[1732530341183,23.776884,253.18,253.06,19.5794]
[1732530341774,12.1394614,253.16,253.07,2.3708]
[1732530341980,12.1394614,253.14,253.07,2.3708]
[1732530342885,12.1394614,253.16,253.07,2.3708]
[1732530343072,23.776884,253.15,253.07,2.3708]
[1732530343596,12.1394614,253.17,253.07,2.3708]
[1732530343983,23.776884,253.18,253.07,2.3708]
[1732530344179,23.776884,253.22,253.07,2.3708]
[1732530344180,12.1394614,253.22,253.09,20.0]
[1732530344392,12.1394614,253.2,253.09,20.0]
[1732530345402,12.1394614,253.2,253.1,2.3706]
[1732530345590,12.1394614,253.19,253.1,2.3706]
[1732530345905,23.776884,253.17,253.06,17.6036]
[1732530346098,12.1394614,253.15,253.08,2.3707]
[1732530346581,12.1394614,253.14,253.06,19.9745]
[1732530346777,12.1394614,253.11,253.06,17.6036]
[1732530348798,12.1394614,253.1,253.06,17.6036]
[1732530348984,35.9163454,253.08,253.01,6.997]
[1732530349385,12.1394614,253.07,253.0,19.2291]
[1732530350803,35.9163454,253.08,253.0,19.2291]
[1732530351099,23.776884,253.08,253.0,19.2291]
[1732530351290,23.776884,253.1,253.0,19.2291]
[1732530351499,12.1394614,253.11,253.0,19.2291]
[1732530351898,12.1394614,253.13,253.0,24.1698]
[1732530352403,12.1394614,253.11,253.0,24.1698]
[1732530354014,23.776884,253.12,253.03,20.0]
[1732530354497,23.776884,253.13,253.03,20.0]
[1732530355101,23.776884,253.14,253.04,1.9759]
[1732530356288,35.9163454,253.14,253.04,1.9759]
[1732530357102,39.8666454,253.14,253.01,1.9762]
[1732530357319,12.1394614,253.13,253.01,1.9762]
[1732530357493,23.776884,253.12,253.01,1.9762]
[1732530357689,12.1394614,253.11,253.01,1.9762]
[1732530357893,12.1394614,253.1,253.01,1.9762]
[1732530358100,23.776884,253.08,253.01,1.9762]
[1732530358498,35.9163454,253.08,253.01,1.9762]
[1732530360189,23.776884,253.08,253.01,1.9762]
[1732530361624,23.776884,253.09,253.01,1.9762]
[1732530361916,12.1394614,253.13,253.01,1.9762]
[1732530362095,16.0896614,253.15,253.01,1.9762]
[1732530362293,139.65,253.16,253.03,20.0]
[1732530362492,12.1394614,253.19,253.05,6.7929]
[1732530362710,12.1394614,253.2,253.06,16.8147]
[1732530362892,12.1394614,253.19,253.06,16.8147]
[1732530363094,12.1394614,253.18,253.06,16.8147]
[1732530363287,12.1394614,253.19,253.06,16.8147]
[1732530363814,12.1394614,253.19,253.07,1.9757]
[1732530364019,16.0890614,253.19,253.07,1.9757]
[1732530364311,23.776884,253.19,253.07,1.9757]
[1732530364613,12.1394614,253.18,253.07,1.9757]
[1732530364997,12.1394614,253.16,253.07,1.9757]
[1732530366106,12.1394614,253.12,253.06,16.8147]
[1732530366313,23.776884,253.16,253.06,16.8147]
[1732530366314,12.1394614,253.14,253.06,16.8147]
[1732530366614,23.776884,253.13,253.06,18.7904]
[1732530366796,12.1394614,253.15,253.06,18.7904]
[1732530366997,23.776884,253.16,253.06,18.7904]
[1732530367399,35.9163454,253.17,253.06,18.7904]
[1732530368007,12.1394614,253.13,253.06,18.7904]
[1732530368215,12.1394614,253.14,253.06,18.7904]
[1732530368390,23.776884,253.18,253.06,18.7904]
[1732530368591,35.9163454,253.18,253.06,18.7904]
[1732530369515,12.1394614,253.2,253.06,18.7904]
[1732530369716,12.1394614,253.21,253.09,20.0]
[1732530369902,12.1394614,253.21,253.1,1.9755]
[1732530370616,12.1394614,253.24,253.14,17.881]
[1732530371502,12.1394614,253.24,253.15,1.9751]
[1732530371902,12.1394614,253.23,253.15,1.9751]
[1732530372423,12.1394614,253.22,253.15,1.9751]
[1732530372602,12.1394614,253.21,253.15,1.9751]
[1732530372935,12.1394614,253.23,253.15,1.9751]
[1732530373113,12.1394614,253.25,253.16,7.2363]
[1732530373312,3.9475,253.32,253.16,7.2363]
[1732530373313,12.1394614,253.26,253.16,7.2363]
[1732530373702,12.1394614,253.25,253.16,7.2363]
[1732530374096,12.1394614,253.26,253.16,7.2363]
[1732530374305,12.1394614,253.27,253.17,1.9749]
[1732530374712,12.1394614,253.28,253.17,1.9749]
[1732530374916,12.1394614,253.28,253.19,20.0]
[1732530375925,12.1394614,253.28,253.2,1.9747]
[1732530376520,12.1394614,253.26,253.2,1.9747]
[1732530376820,12.1394614,253.23,253.16,7.2363]
[1732530377021,12.1394614,253.21,253.16,9.2113]
[1732530377519,12.1394614,253.22,253.16,9.2113]
[1732530377900,12.1394614,253.23,253.16,9.2113]
[1732530378619,12.1394614,253.22,253.16,9.2113]
[1732530378921,12.1394614,253.19,253.16,7.2363]
[1732530379127,12.1394614,253.18,253.16,7.2363]
[1732530379300,12.1394614,253.17,253.14,17.881]
[1732530381298,12.1394614,253.16,253.14,17.881]
[1732530381503,12.1394614,253.19,253.14,17.881]
[1732530381704,12.1394614,253.19,253.14,19.8561]
[1732530382620,12.1394614,253.18,253.14,17.881]
[1732530383931,12.1394614,253.25,253.14,19.8561]
[1732530384610,12.1394614,253.2,253.14,17.881]
[1732530385018,12.1394614,253.22,253.14,19.8561]
[1732530385213,12.1394614,253.21,253.14,19.8561]
[1732530385416,12.1394614,253.18,253.14,17.881]
[1732530386230,12.1394614,253.19,253.14,17.881]
[1732530386442,12.1394614,253.18,253.14,17.881]
[1732530386824,12.1394614,253.19,253.14,17.881]
[1732530389023,12.1394614,253.23,253.14,19.8561]
[1732530389612,12.1394614,253.22,253.14,19.8561]
[1732530389812,12.1394614,253.24,253.14,19.8561]
[1732530391431,12.1394614,253.22,253.14,19.8561]
[1732530394613,12.1394614,253.2,253.14,19.8561]
[1732530394942,12.1394614,253.22,253.14,19.8561]
[1732530395230,12.1394614,253.21,253.14,19.8561]
[1732530395412,12.1394614,253.2,253.14,19.8561]
[1732530396127,12.1394614,253.21,253.14,19.8561]
[1732530396316,12.1394614,253.19,253.14,17.881]
[1732530396514,3.9489,253.23,253.14,17.881]
[1732530396717,12.1394614,253.22,253.14,20.2511]
[1732530396926,12.1394614,253.21,253.14,20.2511]
[1732530397113,12.1394614,253.2,253.14,20.2511]
[1732530397313,12.1394614,253.19,253.14,17.881]
[1732530397513,12.1394614,253.18,253.14,17.881]
[1732530397821,12.1394614,253.19,253.14,17.881]
[1732530399829,12.1394614,253.15,253.1,6.8852]
[1732530400230,12.1394614,253.13,253.1,6.8852]
[1732530401516,12.1394614,253.12,253.09,18.4394]
[1732530401729,12.1394614,253.13,253.09,18.4394]
[1732530402964,12.1394614,253.14,253.09,18.4394]
[1732530403618,23.776884,253.14,253.09,18.4394]
[1732530404216,12.1394614,253.16,253.09,20.81]
[1732530404416,12.1394614,253.18,253.09,20.81]
[1732530404631,12.1394614,253.19,253.09,20.81]
[1732530405031,12.1394614,253.2,253.09,20.81]
[1732530405432,12.1394614,253.18,253.09,20.81]
[1732530407526,12.1394614,253.17,253.09,20.81]
[1732530407726,12.1394614,253.16,253.09,20.81]
[1732530408249,12.1394614,253.14,253.09,20.81]
[1732530408731,12.1394614,253.14,253.09,18.4394]
[1732530409129,12.1394614,253.13,253.09,18.4394]
[1732530410137,12.1394614,253.14,253.09,18.4394]
[1732530410340,12.1394614,253.15,253.09,18.4394]
[1732530410549,23.776884,253.15,253.09,18.4394]
[1732530410741,23.776884,253.15,253.09,20.81]
[1732530410929,12.1394614,253.18,253.09,20.81]
[1732530411139,12.1394614,253.21,253.09,20.81]
[1732530411440,9.8714,253.26,253.09,20.81]
[1732530411642,12.1394614,253.2,253.09,20.81]
[1732530412030,12.1394614,253.22,253.12,20.0]
[1732530413044,12.1394614,253.21,253.12,20.0]
[1732530413426,12.1394614,253.22,253.13,2.3703]
[1732530414049,23.776884,253.23,253.14,7.192]
[1732530414355,23.776884,253.24,253.14,7.192]
[1732530414553,35.9163454,253.24,253.14,7.192]
[1732530415229,35.9163454,253.24,253.15,19.8597]
[1732530416133,12.1394614,253.23,253.15,19.8597]
[1732530416643,12.1394614,253.22,253.15,19.8597]
[1732530416841,12.1394614,253.2,253.15,19.8597]
[1732530417030,12.1394614,253.21,253.15,19.8597]
[1732530417341,12.1394614,253.22,253.15,19.8597]
[1732530417555,12.1394614,253.21,253.15,19.8597]
[1732530417848,12.1394614,253.22,253.15,19.8597]
[1732530418041,12.1394614,253.21,253.15,19.8597]
[1732530418239,12.1394614,253.23,253.15,19.8597]
[1732530419129,12.1394614,253.22,253.15,19.8597]
[1732530419652,35.9163454,253.25,253.15,19.8597]
[1732530420249,12.1394614,253.22,253.15,19.8597]
[1732530420724,12.1394614,253.19,253.15,17.4896]
[1732530421049,12.1394614,253.18,253.15,19.8597]
[1732530421245,12.1394614,253.19,253.15,19.8597]
[1732530421550,12.1394614,253.17,253.15,17.4896]
[1732530421747,12.1394614,253.18,253.15,17.4896]
[1732530422339,12.1394614,253.17,253.15,17.4896]
[1732530423531,12.1394614,253.18,253.15,17.4896]
[1732530424350,23.776884,253.18,253.15,17.4896]
[1732530424855,23.776884,253.19,253.15,17.4896]
[1732530425752,35.9163454,253.19,253.15,17.4896]
[1732530425936,35.9163454,253.2,253.15,19.8596]
[1732530426339,7.77448171,253.2,253.15,19.8596]
[1732530426640,23.776884,253.19,253.15,17.4896]
[1732530427352,7.77448171,253.18,253.15,17.4896]
[1732530428741,7.77448171,253.16,253.15,17.4896]
[1732530428941,31.55136571,253.16,253.12,20.0]
[1732530431034,31.55136571,253.16,253.12,22.3704]
[1732530431837,7.77448171,253.17,253.12,22.3704]
[1732530432042,7.77448171,253.16,253.12,22.3704]
[1732530432565,7.77448171,253.15,253.12,22.3704]
[1732530433263,7.77448171,253.17,253.12,22.3704]
[1732530433669,23.776884,253.16,253.12,22.3704]
[1732530434044,31.55136571,253.16,253.12,22.3704]
[1732530434361,7.1766,253.26,253.12,22.3704]
[1732530434562,7.77448171,253.24,253.13,20.0]
[1732530435146,7.77448171,253.25,253.15,20.0]
[1732530436065,7.77448171,253.28,253.19,20.0]
[1732530436472,7.77448171,253.27,253.2,2.3696]
[1732530436766,7.77448171,253.26,253.2,2.3696]
[1732530437544,23.776884,253.26,253.2,2.3696]
[1732530437755,16.59607041,253.37,253.2,2.3696]
[1732530437756,22.7757,253.41,253.2,2.3696]
[1732530437961,7.77448171,253.31,253.21,20.0]
[1732530438158,7.77448171,253.32,253.22,20.0]
[1732530438347,7.77448171,253.31,253.22,20.0]
[1732530438870,7.77448171,253.29,253.22,22.3693]
[1732530439045,7.77448171,253.28,253.22,22.3693]
[1732530439469,7.77448171,253.27,253.22,22.3693]
[1732530442453,7.77448171,253.25,253.22,20.0]
[1732530442881,7.77448171,253.27,253.22,21.9745]
[1732530443753,7.77448171,253.26,253.22,21.9745]
[1732530444153,7.77448171,253.27,253.22,21.9745]
[1732530445068,7.77448171,253.26,253.22,21.9745]
[1732530445270,7.77448171,253.25,253.19,6.82]
[1732530445480,7.77448171,253.22,253.19,8.7947]
[1732530445771,7.77448171,253.21,253.19,1.9747]
[1732530446148,7.77448171,253.2,253.13,13.29672954]
[1732530446368,7.77448171,253.18,253.13,6.7827]
[1732530446576,7.77448171,253.18,253.16,19.0523]
[1732530446952,22.7757,253.31,253.16,19.0523]
[1732530446953,7.77448171,253.2,253.16,19.0523]
[1732530447270,7.77448171,253.17,253.16,17.0773]
[1732530448265,7.77448171,253.17,253.13,1.9752]
[1732530448447,7.77448171,253.16,253.13,1.9752]
[1732530448652,7.77448171,253.17,253.13,1.9752]
[1732530448861,7.77448171,253.16,253.13,1.9752]
[1732530449251,7.77448171,253.16,253.11,1.9754]
[1732530450256,3.9491,253.22,253.11,1.9754]
[1732530450461,7.77448171,253.18,253.11,1.9754]
[1732530451878,7.77448171,253.19,253.11,1.9754]
[1732530452383,7.77448171,253.18,253.11,1.9754]
[1732530452679,7.77448171,253.17,253.11,1.9754]
[1732530453376,7.77448171,253.16,253.11,1.9754]
[1732530454163,7.77448171,253.15,253.11,1.9754]
[1732530454468,7.77448171,253.13,253.1,19.273]
[1732530454660,7.77448171,253.15,253.1,19.273]
[1732530454976,7.77448171,253.14,253.1,19.273]
[1732530455976,7.77448171,253.15,253.1,19.273]
[1732530456776,7.77448171,253.16,253.1,19.273]
[1732530457170,23.776884,253.23,253.1,19.273]
[1732530457362,7.77448171,253.2,253.1,19.273]
[1732530457557,7.77448171,253.22,253.13,20.0]
[1732530457957,7.77448171,253.2,253.13,20.0]
[1732530458772,7.77448171,253.19,253.13,20.0]
[1732530459076,7.77448171,253.19,253.14,2.3702]
[1732530459282,7.77448171,253.2,253.14,2.3702]
[1732530459863,7.77448171,253.19,253.14,2.3702]
[1732530460063,7.77448171,253.18,253.14,2.3702]
[1732530460265,7.77448171,253.19,253.14,2.3702]
[1732530461063,7.77448171,253.18,253.14,2.3702]
[1732530461256,7.77448171,253.19,253.14,2.3702]
[1732530461478,7.77448171,253.21,253.14,2.3702]
[1732530461680,7.77448171,253.2,253.14,2.3702]
[1732530461978,7.77448171,253.19,253.14,2.3702]
[1732530462281,7.77448171,253.16,253.11,2.3704]
[1732530462481,7.77448171,253.15,253.11,2.3704]
[1732530462978,3.9495,253.2,253.11,2.3704]
[1732530463279,7.77448171,253.16,253.11,2.3704]
[1732530463681,7.77448171,253.17,253.11,2.3704]
[1732530464364,7.77448171,253.18,253.11,2.3704]
[1732530466065,27.725984,253.23,253.11,2.3704]
[1732530466276,7.77448171,253.21,253.11,2.3704]
[1732530466465,7.77448171,253.2,253.11,2.3704]
[1732530467488,23.776884,253.23,253.13,20.0]
[1732530467698,7.77448171,253.21,253.13,20.0]
[1732530468173,7.77448171,253.2,253.13,20.0]
[1732530468771,7.77448171,253.2,253.14,2.3702]
[1732530468968,27.725784,253.23,253.14,2.3702]
[1732530469176,7.77448171,253.21,253.14,2.3702]
[1732530469685,7.77448171,253.2,253.14,2.3702]
[1732530470069,27.725784,253.23,253.14,2.3702]
[1732530470270,7.77448171,253.21,253.14,2.3702]
[1732530470466,7.77448171,253.19,253.14,2.3702]